fUST/lending_fUST_20250920
["ID","MTS","AMOUNT","RATE_DAILY","PERIOD"]
[386545092,1758376229919,-500.0,0.00020775,2]
[386545093,1758376229999,-500.0,0.00020775,2]
[386545133,1758376232870,-500.0,0.00020775,2]
[386545134,1758376232880,-500.0,0.00020775,2]
[386545135,1758376232891,-500.0,0.00020775,2]
[386545136,1758376232900,-500.0,0.00020775,2]
[386545137,1758376232909,-379.91130796,0.00020775,2]
[386545138,1758376232918,-500.0,0.00020775,2]
[386545139,1758376232928,-500.0,0.00020775,2]
[386545140,1758376232938,-500.0,0.00020775,2]
[386545141,1758376232948,-500.0,0.00020775,2]
[386545142,1758376232958,-500.0,0.00020775,2]
[386545143,1758376232968,-500.0,0.00020775,2]
[386545144,1758376232977,-500.0,0.00020775,2]
[386545145,1758376232987,-500.0,0.00020775,2]
[386545146,1758376232997,-344.01104131,0.00020775,2]
[386545147,1758376233007,-4718.2921702,0.00020775,2]
[386545148,1758376233017,-480.0,0.00020775,2]
[386545149,1758376233027,-480.40468648,0.00020775,2]
[386545150,1758376233038,-480.0,0.00020775,2]
[386545151,1758376233047,-480.0,0.00020775,2]
[386545152,1758376233058,-1260.07,0.00020775,2]
[386545153,1758376233068,-480.0,0.00020775,2]
[386545154,1758376233077,-483.78620592,0.00020775,2]
[386545155,1758376233087,-580.26,0.00020775,3]
[386545156,1758376233096,-50000.0,0.00020776,2]
[386545157,1758376233106,-1200.0,0.00020777,2]
[386545158,1758376233115,-337.0626027,0.00020777,2]
[386545159,1758376233125,-480.0,0.00020777,2]
[386545160,1758376233134,-480.0,0.00020777,2]
[386545161,1758376233144,-273.88778858,0.00020778,2]
[386545162,1758376233154,-480.0,0.00020778,2]
[386545164,1758376233163,-480.0,0.00020778,2]
[386545166,1758376233173,-500.0,0.00020778,2]
[386545168,1758376233183,-204.24,0.00020778,2]
[386545170,1758376233193,-485.0248938,0.00020778,2]
[386545172,1758376233202,-480.0,0.00020778,2]
[386545174,1758376233212,-480.0,0.00020778,2]
[386545176,1758376233222,-480.0,0.00020778,2]
[386545178,1758376233232,-480.0,0.00020778,2]
[386545179,1758376233242,-480.0,0.00020778,2]
[386545181,1758376233255,-480.0,0.00020778,2]
[386545183,1758376233264,-480.0,0.00020778,2]
[386545184,1758376233274,-480.0,0.00020778,2]
[386545185,1758376233284,-480.0,0.00020778,2]
[386545186,1758376233293,-480.0,0.00020778,2]
[386545187,1758376233303,-480.0,0.00020778,2]
[386545188,1758376233312,-480.0,0.00020778,2]
[386545189,1758376233322,-480.0,0.00020778,2]
[386545190,1758376233332,-480.0,0.00020778,2]
[386545191,1758376233342,-480.0,0.00020778,2]
[386545192,1758376233352,-484.4,0.00020778,2]
[386545193,1758376233362,-480.0,0.00020778,2]
[386545194,1758376233371,-480.0,0.00020778,2]
[386545195,1758376233380,-480.0,0.00020778,2]
[386545196,1758376233390,-480.0,0.00020778,2]
[386545197,1758376233400,-327.74,0.00020778,2]
[386545198,1758376233409,-386.83,0.00020778,3]
[386545199,1758376233418,-193.41,0.00020778,3]
[386545200,1758376233428,-762.6544073,0.00020779,2]
[386545201,1758376233437,-500.0,0.0002078,2]
[386545202,1758376233447,-773.66,0.0002078,3]
[386545203,1758376233457,-500.0,0.00020781,2]
[386545204,1758376233467,-2864.97,0.00020781,2]
[386545205,1758376233477,-480.0,0.00020781,2]
[386545206,1758376233487,-1455.77,0.00020781,2]
[386545207,1758376233497,-480.0,0.00020781,2]
[386545208,1758376233506,-480.0,0.00020781,2]
[386545209,1758376233516,-1039.27,0.00020781,2]
[386545210,1758376233525,-360.89565616,0.00020781,2]
[386545211,1758376233535,-490.10439157,0.00020781,2]
[386545212,1758376233545,-489.33481856,0.00020781,2]
[386545213,1758376233554,-2560.68,0.00020781,2]
[386545214,1758376233564,-480.0,0.00020781,2]
[386545215,1758376233574,-419.34308129,0.00020781,2]
[386545216,1758376233584,-487.20405242,0.00020781,2]
[386545217,1758376233593,-480.0,0.00020781,2]
[386545218,1758376233603,-480.0,0.00020781,2]
[386545219,1758376233612,-480.0,0.00020781,2]
[386545220,1758376233622,-480.0,0.00020781,2]
[386545221,1758376233631,-481.5012403,0.00020781,2]
[386545222,1758376233641,-155.89302999,0.00020782,2]
[386545223,1758376233650,-323.87404249,0.00020782,2]
[386545224,1758376233660,-556.72643848,0.00020782,2]
[386545225,1758376233669,-481.89372087,0.00020782,2]
[386545226,1758376233679,-480.0,0.00020782,2]
[386545227,1758376233688,-480.0,0.00020782,2]
[386545228,1758376233697,-158.314,0.00020784,2]
[386545229,1758376233707,-460.0,0.00020784,2]
[386545230,1758376233716,-482.36795285,0.00020785,2]
[386545231,1758376233725,-481.45039781,0.00020785,2]
[386545232,1758376233735,-485.47421622,0.00020785,2]
[386545233,1758376233744,-480.0,0.00020785,2]
[386545234,1758376233754,-436.87317553,0.00020785,2]
[386545235,1758376233763,-480.0,0.00020785,2]
[386545236,1758376233773,-480.0,0.00020785,2]
[386545237,1758376233783,-483.50126493,0.00020785,2]
[386545238,1758376233792,-486.3222526,0.00020785,2]
[386545239,1758376233802,-184.46087977,0.00020785,2]
[386545240,1758376233812,-480.0,0.00020785,2]
[386545241,1758376233823,-480.0,0.00020785,2]
[386545242,1758376233832,-482.06282744,0.00020785,2]
[386545243,1758376233845,-480.0,0.00020785,2]
[386545244,1758376233855,-480.0,0.00020785,2]
[386545245,1758376233864,-480.0,0.00020785,2]
[386545246,1758376233874,-480.0,0.00020785,2]
[386545247,1758376233883,-480.0,0.00020785,2]
[386545248,1758376233892,-480.0,0.00020785,2]
[386545249,1758376233902,-480.0,0.00020785,2]
[386545250,1758376233911,-485.87168602,0.00020785,2]
[386545251,1758376233920,-480.0,0.00020785,2]
[386545252,1758376233932,-480.0,0.00020785,2]
[386545253,1758376233942,-480.0,0.00020785,2]
[386545254,1758376233951,-480.0,0.00020785,2]
[386545255,1758376233961,-480.0,0.00020785,2]
[386545256,1758376233971,-480.0,0.00020785,2]
[386545257,1758376233981,-480.0,0.00020785,2]
[386545258,1758376233993,-480.0,0.00020785,2]
[386545259,1758376234003,-480.0,0.00020785,2]
[386545260,1758376234013,-491.11764647,0.00020785,2]
[386545261,1758376234025,-480.0,0.00020785,2]
[386545262,1758376234035,-480.0,0.00020785,2]
[386545263,1758376234044,-480.0,0.00020785,2]
[386545264,1758376234054,-491.95,0.00020785,2]
[386545265,1758376234064,-179.18309237,0.00020785,2]
[386545266,1758376234073,-480.0,0.00020785,2]
[386545267,1758376234083,-480.0,0.00020785,2]
[386545268,1758376234093,-480.0,0.00020785,2]
[386545269,1758376234102,-480.0,0.00020785,2]
[386545270,1758376234111,-777.59,0.00020785,2]
[386545271,1758376234120,-480.0,0.00020785,2]
[386545272,1758376234129,-480.0,0.00020785,2]
[386545273,1758376234139,-480.0,0.00020785,2]
[386545274,1758376234148,-467.33,0.00020785,2]
[386545275,1758376234157,-480.0,0.00020785,2]
[386545276,1758376234167,-502.49670138,0.00020785,2]
[386545277,1758376234176,-480.0,0.00020785,2]
[386545278,1758376234187,-480.0,0.00020785,2]
[386545279,1758376234197,-480.0,0.00020785,2]
[386545280,1758376234206,-480.0,0.00020785,2]
[386545281,1758376234216,-500.0,0.00020785,2]
[386545282,1758376234226,-494.01694321,0.00020785,2]
[386545283,1758376234236,-528.19,0.00020785,2]
[386545284,1758376234246,-480.0,0.00020785,2]
[386545285,1758376234255,-482.9168936,0.00020785,2]
[386545286,1758376234265,-480.0,0.00020785,2]
[386545287,1758376234275,-480.0,0.00020785,2]
[386545288,1758376234284,-480.0,0.00020785,2]
[386545289,1758376234295,-480.0,0.00020785,2]
[386545290,1758376234304,-480.0,0.00020785,2]
[386545291,1758376234314,-1004.67687445,0.00020785,2]
[386545292,1758376234324,-480.0,0.00020785,2]
[386545293,1758376234333,-480.0,0.00020785,2]
[386545294,1758376234343,-480.0,0.00020785,2]
[386545295,1758376234352,-411.31788032,0.00020785,2]
[386545296,1758376234361,-480.0,0.00020785,2]
[386545297,1758376234371,-598.67406893,0.00020785,2]
[386545298,1758376234381,-480.0,0.00020785,2]
[386545299,1758376234390,-484.30409549,0.00020785,2]
[386545300,1758376234400,-480.0,0.00020785,2]
[386545301,1758376234410,-483.53363682,0.00020785,2]
[386545302,1758376234419,-480.0,0.00020785,2]
[386545303,1758376234428,-546.31600982,0.00020785,2]
[386545304,1758376234438,-94.00898534,0.00020785,2]
[386545305,1758376234452,-255.57243791,0.00020785,2]
[386545306,1758376234463,-150.41857675,0.00020785,2]
[386545307,1758376234473,-480.0,0.00020785,2]
[386545308,1758376234482,-353.5426352,0.00020785,2]
[386545309,1758376234494,-126.4573648,0.00020785,2]
[386545310,1758376234504,-480.0,0.00020785,2]
[386545311,1758376234514,-480.0,0.00020785,2]
[386545312,1758376234523,-480.0,0.00020785,2]
[386545313,1758376234532,-480.0,0.00020785,2]
[386545314,1758376234541,-480.0,0.00020785,2]
[386545315,1758376234550,-480.0,0.00020785,2]
[386545316,1758376234559,-480.0,0.00020785,2]
[386545317,1758376234569,-448.44705525,0.00020785,2]
[386545318,1758376234578,-487.51401817,0.00020785,2]
[386545319,1758376234587,-525.7923032,0.00020785,2]
[386545320,1758376234598,-417.21897027,0.00020785,2]
[386545321,1758376234615,-62.78102973,0.00020785,2]
[386545322,1758376234624,-480.0,0.00020785,2]
[386545323,1758376234634,-480.0,0.00020785,2]
[386545324,1758376234644,-156.14247103,0.00020785,2]
[386545325,1758376234655,-323.85752897,0.00020785,2]
[386545326,1758376234664,-480.0,0.00020785,2]
[386545327,1758376234673,-480.0,0.00020785,2]
[386545328,1758376234683,-482.28238903,0.00020785,2]
[386545329,1758376234692,-480.0,0.00020785,2]
[386545330,1758376234702,-480.0,0.00020785,2]
[386545331,1758376234711,-480.0,0.00020785,2]
[386545332,1758376234722,-480.0,0.00020785,2]
[386545333,1758376234732,-964.37,0.00020785,2]
[386545334,1758376234742,-480.0,0.00020785,2]
[386545335,1758376234751,-480.0,0.00020785,2]
[386545336,1758376234761,-480.0,0.00020785,2]
[386545337,1758376234770,-491.67073469,0.00020785,2]
[386545338,1758376234780,-480.0,0.00020785,2]
[386545339,1758376234790,-540.4,0.00020785,2]
[386545340,1758376234800,-480.0,0.00020785,2]
[386545341,1758376234810,-480.0,0.00020785,2]
[386545342,1758376234819,-480.0,0.00020785,2]
[386545343,1758376234828,-366.10514605,0.00020785,2]
[386545344,1758376234839,-480.0,0.00020785,2]
[386545345,1758376234849,-157.50584037,0.00020785,2]
[386545429,1758376240053,426.11,0.00019226,2]
[386545434,1758376240582,852.21,0.00020141,2]
[386545435,1758376240816,-480.0,0.00020684,2]
[386545437,1758376240825,-2750.21,0.00020685,2]
[386545438,1758376240836,-500.0,0.00020775,2]
[386545439,1758376240850,-500.0,0.00020775,2]
[386545440,1758376240862,-500.0,0.00020775,2]
[386545441,1758376240871,-500.0,0.00020775,2]
[386545442,1758376240883,-322.49415963,0.00020785,2]
[386545443,1758376240892,-480.0,0.00020785,2]
[386545444,1758376240901,-336.52088132,0.00020785,2]
[386545445,1758376240911,-480.0,0.00020785,2]
[386545446,1758376240921,-480.0,0.00020785,2]
[386545447,1758376240930,-96.21495905,0.00020785,2]
[386545678,1758376243831,-772.54,0.00020684,2]
[386545679,1758376243844,-433.37721478,0.00020775,2]
[386545680,1758376243853,-500.0,0.00020775,2]
[386545681,1758376243862,-514.13324612,0.00020775,2]
[386545682,1758376243872,-500.0,0.00020775,2]
[386545683,1758376243881,-480.0,0.00020775,2]
[386545684,1758376243890,-156.50242936,0.00020785,2]
[386545685,1758376243942,-227.28261159,0.00020785,2]
[386545686,1758376243952,-444.05738841,0.00020785,2]
[386545687,1758376243963,-35.94261159,0.00020785,2]
[386545688,1758376243973,-480.0,0.00020785,2]
[386545689,1758376243985,-387.05738841,0.00020785,2]
[386545690,1758376243997,-93.83252059,0.00020785,2]
[386545691,1758376244007,-480.0,0.00020785,2]
[386545692,1758376244018,-480.0,0.00020785,2]
[386545693,1758376244027,-480.0,0.00020785,2]
[386545694,1758376244037,-480.0,0.00020785,2]
[386545695,1758376244046,-480.97028205,0.00020785,2]
[386545696,1758376244056,-480.0,0.00020785,2]
[386545697,1758376244065,-140.58363966,0.00020785,2]
[386545718,1758376246755,-500.0,0.00020775,2]
[386545719,1758376246764,-339.41636034,0.00020785,2]
[386545720,1758376246774,-480.0,0.00020785,2]
[386545721,1758376246783,-480.0,0.00020785,2]
[386545722,1758376246793,-457.09489608,0.00020785,2]
[386545723,1758376246802,-480.0,0.00020785,2]
[386545724,1758376246811,-480.0,0.00020785,2]
[386545725,1758376246820,-480.0,0.00020785,2]
[386545726,1758376246829,-270.13978007,0.00020785,2]
[386545732,1758376246979,5068.4674214,0.00019788,2]
[386545750,1758376305722,948.24627547,0.000199,2]
[386545751,1758376323398,409.84,0.00019226,2]
[386545752,1758376323852,819.68,0.00020141,2]
[386545753,1758376348469,-300.0,0.00020683,2]
[386545754,1758376348543,-1200.0,0.00020683,2]
[386545755,1758376348615,-480.0,0.00020684,2]
[386545756,1758376348690,-484.87668878,0.00020684,2]
[386545757,1758376348764,-480.0,0.00020684,2]
[386545758,1758376348838,-480.0,0.00020684,2]
[386545759,1758376348916,-541.28,0.00020684,2]
[386545760,1758376348990,-705.04662244,0.00020684,2]
[386545761,1758376363330,774.001475,0.00019754,2]
[386545762,1758376368499,-641.61,0.00020675,10]
[386545764,1758376368584,-657.60337756,0.00020684,2]
[386545765,1758376368673,-480.0,0.00020684,2]
[386545766,1758376368760,-1215.35,0.00020684,2]
[386545767,1758376368852,-160.0,0.00020685,2]
[386545768,1758376369086,160.0,0.00020684,2]
[386545769,1758376369908,480.0,0.00020684,2]
[386545770,1758376373508,480.0,0.00020684,2]
[386545771,1758376376974,534.68,0.00020675,10]
[386545773,1758376382787,300.0,0.00020684,2]
[386545774,1758376386368,1736.20324488,0.00019774,2]
[386545775,1758376386435,10000.01,0.00019774,2]
[386545776,1758376386504,412.49418252,0.00019774,2]
[386545777,1758376388538,445.57,0.00020675,10]
[386545781,1758376412968,430.36,0.00019227,2]
[386545782,1758376413454,860.73,0.00020142,2]
[386545783,1758376414293,493.4288672,0.00019727,2]
[386545788,1758376452377,167.03891481,0.0002,2]
[386545789,1758376452670,167.03891481,0.00020274,2]
[386545791,1758376485714,-812.14104385,0.0002053,2]
[386545792,1758376485789,-160.30438011,0.00020585,2]
[386545793,1758376485848,-288.71652492,0.00020585,2]
[386545794,1758376485911,-160.0,0.00020585,2]
[386545795,1758376485981,-297.63222015,0.000206,2]
[386545796,1758376486048,-300.0,0.00020683,2]
[386545797,1758376487216,-528.47082347,0.00020683,2]
[386545798,1758376487276,-10000.01,0.00020683,2]
[386545799,1758376487351,-10000.01,0.00020683,2]
[386545800,1758376487415,-10000.01,0.00020683,2]
[386545801,1758376487501,916.63806622,0.000199,2]
[386545802,1758376487669,-9083.37193378,0.00020683,2]
[386545803,1758376487787,-10000.01,0.00020683,2]
[386545804,1758376487863,-388.11724275,0.00020683,2]
[386545805,1758376487931,-182.46516653,0.00020684,2]
[386545806,1758376487999,-500.0,0.00020684,2]
[386545807,1758376488069,-500.0,0.00020684,2]
[386545808,1758376488141,-500.0,0.00020684,2]
[386545809,1758376488209,-394.5127884,0.00020684,2]
[386545810,1758376488280,-500.0,0.00020684,2]
[386545811,1758376488349,-500.0,0.00020684,2]
[386545812,1758376488418,-500.0,0.00020684,2]
[386545813,1758376488483,-500.0,0.00020684,2]
[386545814,1758376488552,-500.0,0.00020684,2]
[386545815,1758376489343,-69.81960464,0.00020684,2]
[386545816,1758376497216,423.66,0.00019226,2]
[386545817,1758376498303,847.31,0.00020141,2]
[386545820,1758376528348,8729.04,0.00019684,2]
[386545821,1758376528420,1270.96,0.00019684,2]
[386545823,1758376582781,654.21,0.00019296,2]
[386545824,1758376583316,1308.43,0.00020215,2]
[386545831,1758376616246,500.0,0.000197,2]
[386545832,1758376627881,500.0,0.000197,2]
[386545836,1758376640812,500.0,0.000197,2]
[386545837,1758376652559,500.0,0.000197,2]
[386545838,1758376664751,500.0,0.000197,2]
[386545839,1758376668930,703.63,0.00019282,2]
[386545840,1758376669011,1188.07742178,0.000199,2]
[386545841,1758376669363,1407.25,0.000202,2]
[386545842,1758376675228,500.0,0.000197,2]
[386545843,1758376675420,467.45257822,0.000197,2]
[386545844,1758376675485,32.54742178,0.000197,2]
[386545845,1758376680391,481.0,0.00020526,2]
[386545846,1758376686868,500.0,0.000197,2]
[386545847,1758376687770,500.0,0.000197,2]
[386545851,1758376696017,-160.30438009,0.00020584,2]
[386545852,1758376696100,-1200.0,0.00020584,2]
[386545853,1758376696189,-160.0,0.00020585,2]
[386545854,1758376696261,-1383.01545537,0.00020585,2]
[386545855,1758376696548,-4193.37032908,0.00020585,2]
[386545856,1758376696788,-3176.38,0.00020675,3]
[386545857,1758376696862,-1588.19,0.00020675,3]
[386545858,1758376697249,-794.1,0.00020675,3]
[386545859,1758376697317,-499.63,0.00020675,10]
[386545860,1758376697391,-397.05,0.00020675,3]
[386545861,1758376697458,-198.52,0.00020675,3]
[386545862,1758376697529,-416.36,0.00020675,10]
[386545863,1758376697597,-296.0,0.00020683,2]
[386545864,1758376697661,-258.0,0.00020683,2]
[386545865,1758376697734,-1200.0,0.00020683,2]
[386545866,1758376697818,-500.0,0.00020683,2]
[386545867,1758376697891,-340.0262918,0.00020683,2]
[386545868,1758376698316,-595.59,0.00020675,3]
[386545869,1758376698392,-580.05413147,0.00020683,2]
[386545870,1758376698473,-500.0,0.00020683,2]
[386545871,1758376698552,-500.0,0.00020683,2]
[386545872,1758376698635,-500.0,0.00020683,2]
[386545873,1758376698720,-500.0,0.00020683,2]
[386545874,1758376698802,-500.0,0.00020683,2]
[386545875,1758376698888,-500.0,0.00020683,2]
[386545876,1758376698970,-500.0,0.00020683,2]
[386545877,1758376699049,-239.73651639,0.00020683,2]
[386545878,1758376699403,-169.24870428,0.00020683,2]
[386545879,1758376699480,-500.0,0.00020683,2]
[386545880,1758376699553,-500.0,0.00020683,2]
[386545881,1758376699631,-500.0,0.00020683,2]
[386545882,1758376699707,-500.0,0.00020683,2]
[386545883,1758376699784,-379.18902068,0.00020683,2]
[386545884,1758376699865,-500.0,0.00020683,2]
[386545885,1758376699941,-500.0,0.00020683,2]
[386545886,1758376700020,-500.0,0.00020683,2]
[386545887,1758376700092,-500.0,0.00020683,2]
[386545888,1758376700175,-403.13455008,0.00020683,2]
[386545889,1758376700450,-96.86544992,0.00020683,2]
[386545890,1758376700524,-500.0,0.00020683,2]
[386545891,1758376700596,-214.66860794,0.00020683,2]
[386545892,1758376700670,-500.0,0.00020683,2]
[386545893,1758376700750,-500.0,0.00020683,2]
[386545894,1758376700829,-500.0,0.00020683,2]
[386545895,1758376700908,-500.0,0.00020683,2]
[386545896,1758376700987,-500.0,0.00020683,2]
[386545897,1758376701165,-500.0,0.00020683,2]
[386545898,1758376701245,-500.0,0.00020683,2]
[386545899,1758376701327,-500.0,0.00020683,2]
[386545900,1758376701677,-500.0,0.00020683,2]
[386545901,1758376701759,-500.0,0.00020683,2]
[386545902,1758376701843,-500.0,0.00020683,2]
[386545903,1758376701925,-500.0,0.00020683,2]
[386545904,1758376702009,-500.0,0.00020683,2]
[386545905,1758376702093,-500.0,0.00020683,2]
[386545906,1758376702176,-500.0,0.00020683,2]
[386545907,1758376702252,-480.0,0.00020683,2]
[386545908,1758376702330,-500.0,0.00020683,2]
[386545909,1758376702405,-480.0,0.00020683,2]
[386545910,1758376702573,-480.0,0.00020683,2]
[386545911,1758376702649,-1286.7,0.00020683,2]
[386545912,1758376702723,-737.4253452,0.00020683,2]
[386545913,1758376702888,-4991.7593096,0.00020683,2]
[386545914,1758376703998,500.0,0.000197,2]
[386545915,1758376704515,500.0,0.000197,2]
[386545917,1758376737867,224.48222549,0.000197,2]
[386545919,1758376746104,-346.96,0.00020675,10]
[386545920,1758376746173,-289.14,0.00020675,10]
[386545921,1758376746257,-240.95,0.00020675,10]
[386545922,1758376746331,-480.0,0.00020682,2]
[386545923,1758376746404,-300.0,0.00020682,2]
[386545924,1758376746478,-480.0,0.00020683,2]
[386545925,1758376746557,-255.04745333,0.00020684,2]
[386545926,1758376746641,-500.0,0.00020684,2]
[386545927,1758376746733,-500.0,0.00020684,2]
[386545928,1758376746814,-500.0,0.00020684,2]
[386545929,1758376746888,-162.52287456,0.00020684,2]
[386545930,1758376746967,-500.0,0.00020684,2]
[386545931,1758376747045,-390.76934422,0.00020684,2]
[386545932,1758376747379,-109.23065578,0.00020684,2]
[386545933,1758376747464,-500.0,0.00020684,2]
[386545934,1758376747556,-500.0,0.00020684,2]
[386545935,1758376747655,-500.0,0.00020684,2]
[386545936,1758376747746,-222.13992225,0.00020684,2]
[386545937,1758376747845,-317.47712544,0.00020684,2]
[386545938,1758376747923,-520.74417068,0.00020684,2]
[386545939,1758376748016,-500.0,0.00020684,2]
[386545940,1758376748113,-500.0,0.00020684,2]
[386545941,1758376748208,-583.00956879,0.00020684,2]
[386545942,1758376748560,-1542.6,0.00020684,2]
[386545943,1758376748645,-480.0,0.00020684,2]
[386545944,1758376748729,-480.0,0.00020684,2]
[386545945,1758376748813,-2381.97,0.00020684,2]
[386545946,1758376749412,-230.87,0.00020684,2]
[386545947,1758376749489,-587.77146717,0.00020684,2]
[386545948,1758376749564,-480.0,0.00020684,2]
[386545949,1758376749643,-1078.3,0.00020684,2]
[386545950,1758376749716,-480.0,0.00020684,2]
[386545951,1758376749791,-480.0,0.00020684,2]
[386545952,1758376749866,-480.0,0.00020684,2]
[386545953,1758376752309,703.49,0.00019206,2]
[386545954,1758376752859,1406.98,0.00020121,2]
[386545955,1758376757355,200.79,0.00020675,10]
[386545957,1758376761884,54.86706566,0.00020683,2]
[386545958,1758376761952,425.13293434,0.00020683,2]
[386545959,1758376763769,1831.81,0.00020683,2]
[386545960,1758376764204,230.97321992,0.00020585,2]
[386545961,1758376766186,230.97321991,0.00020682,2]
[386545962,1758376767675,167.32,0.00020675,10]
[386545965,1758376779698,836.64,0.00020675,10]
[386545966,1758376780112,480.0,0.00020684,2]
[386545967,1758376781330,480.0,0.00020683,2]
[386545968,1758376787666,564.50096369,0.00020683,2]
[386545969,1758376788372,569.68287456,0.00020684,2]
[386545970,1758376789565,480.0,0.00020683,2]
[386545971,1758376797990,1122.1387018,0.00019774,2]
[386545972,1758376798922,322.958825,0.00019772,2]
[386545973,1758376801720,1256.92,0.00020683,2]
[386545974,1758376802378,300.0,0.00020684,2]
[386545975,1758376802717,300.0,0.00020684,2]
[386545976,1758376802790,300.0,0.00020684,2]
[386545977,1758376809744,100.95926078,0.00020684,2]
[386545978,1758376809827,379.04073922,0.00020684,2]
[386545979,1758376810125,1200.0,0.00020684,2]
[386545980,1758376823383,1513.17,0.00020683,2]
[386545981,1758376825777,480.50299645,0.00020682,2]
[386545982,1758376828373,160.30438009,0.00020585,2]
[386545983,1758376836710,680.45,0.00019205,2]
[386545984,1758376837238,1360.89,0.00020119,2]
[386545985,1758376837495,480.0,0.00020683,2]
[386545986,1758376838095,410.29,0.00020682,2]
[386545987,1758376842851,480.0,0.00020682,2]
[386545988,1758376846581,480.0,0.00020684,2]
[386545989,1758376850078,2375.36188424,0.00020683,2]
[386545990,1758376850151,807.40971886,0.00020683,2]
[386545991,1758376851250,482.99218539,0.00020682,2]
[386545992,1758376851929,480.0,0.00020683,2]
[386545993,1758376853067,480.0,0.00020682,2]
[386545994,1758376855786,480.0,0.00020683,2]
[386545995,1758376858833,2280.0522408,0.00019772,2]
[386545996,1758376859780,1461.06043172,0.000199,2]
[386545997,1758376863368,489.24679429,0.00020682,2]
[386545998,1758376863965,480.0,0.00020682,2]
[386545999,1758376864056,300.0,0.00020684,2]
[386546000,1758376865162,489.24744141,0.00020682,2]
[386546001,1758376866473,480.0,0.00020682,2]
[386546002,1758376874540,481.29508615,0.00020684,2]
[386546003,1758376877048,480.0,0.00020682,2]
[386546004,1758376878715,328.70610138,0.00020683,2]
[386546005,1758376878780,2061.87389862,0.00020683,2]
[386546006,1758376886915,499.88,0.00020683,2]
[386546007,1758376888050,485.92427923,0.00020682,2]
[386546008,1758376889644,1233.08,0.00020682,2]
[386546009,1758376893046,3717.59052298,0.00020585,2]
[386546010,1758376895520,483.87599363,0.00020682,2]
[386546011,1758376907620,480.0,0.00020682,2]
[386546012,1758376908654,480.0,0.00020683,2]
[386546013,1758376910869,495.11582446,0.00020682,2]
[386546014,1758376911262,62.66948108,0.00020684,2]
[386546015,1758376911316,124.57679125,0.00020684,2]
[386546017,1758376913665,480.0,0.00020682,2]
[386546018,1758376915900,480.0,0.00020682,2]
[386546019,1758376916307,-160.0,0.00020685,2]
[386546020,1758376916865,500.0,0.000206,2]
[386546021,1758376917415,2901.62,0.00020684,2]
[386546022,1758376917696,-5353.81320875,0.00020685,2]
[386546023,1758376917818,-10000.01,0.00020685,2]
[386546024,1758376918084,-10000.01,0.00020685,2]
[386546025,1758376918333,-10000.01,0.00020685,2]
[386546026,1758376918572,-10000.01,0.00020685,2]
[386546027,1758376922320,654.46,0.00019205,2]
[386546028,1758376922614,1308.93,0.0002012,2]
[386546029,1758376925936,728.90784007,0.00019749,2]
[386546030,1758376926424,-480.0,0.00020682,2]
[386546031,1758376926486,-523.39,0.00020683,2]